{"text_format":"1","workbook":"xlsx","n_sheets":3,"sheets":["Základní tabulky","Pavouk","Pořadí"],"not_rendered":{"charts":0,"images":0,"macros":1,"external_links":0,"defined_names":4,"comments":0,"pivot_tables":0},"unopened":[],"bounds":{"document_bytes":16777216,"sheet_cells":100000,"rows_first":2000,"rows_last":500,"rows_between":2000,"halvings":0,"cell_chars":16384,"cell_head_chars":4096},"cells_cut":0,"cells_raw":0,"read":"whole","date_system":"1900"}

{"sheet":"Základní tabulky","index":0,"n_rows":33,"n_cols":9,"rows_kept":33,"cut":false,"hidden":false,"merged":[[0,0,0,8]]}
["Dívky - Olymp Head Babytenis Tour I. - L19 - 18.5.2019"]
[]
["Skupina A - kurt ",null,"Zajíčková Kateřina","Mastná Daria","Zimová Lela","Padrnosová Nela","Pořadí","Počet vítězství"]
["A1","Zajíčková Kateřina",null,"4-0","4-0","4-1","1.","3"]
["A2","Mastná Daria","0-4",null,"0-4","0-4","4.","0"]
["A3","Zimová Lela","0-4","4-0",null,"0-4","3.","1"]
["A4","Padrnosová Nela","1-4","4-0","4-0",null,"2.","2"]
[]
["Skupina B",null,"Chlumská Laura","Dvořáková Denisa","Holubová Eliška","Jelínková Adéla","Pořadí","Počet vítězství"]
["B1","Chlumská Laura",null,"4-0","4-0","4-1","1.","3"]
["B2","Dvořáková Denisa","0-4",null,"4-0","4-2","2.","2"]
["B3","Holubová Eliška","0-4","0-4",null,"1-4","4.","0"]
["B4","Jelínková Adéla","1-4","2-4","4-1",null,"3.","1"]
[]
["Skupina C",null,"Levinsky Gloria","Sobiesiak Maja","Farajpourova Aináz","Musilová Amélie","Pořadí","Počet vítězství"]
["C1","Levinsky Gloria",null,"4-1","4-0","4-0","1.","3"]
["C2","Sobiesiak Maja","1-4",null,"3-4","1-4","4.","0"]
["C3","Farajpourova Aináz","0-4",null,null,"4-3","2.","2"]
["C4","Musilová Amélie","0-4","4-1","3-4",null,"3.","1"]
[]
["Skupina D",null,"Vernerová Sabina","Přikrylová Kateřina","Veberová Nikola","Cenklová Adriana","Jančarová Mariana","Pořadí","Počet vítězství"]
["D1","Vernerová Sabina",null,"4-1","4-2","4-1","4-2","1.","4"]
["D2","Přikrylová Kateřina","1-4",null,"4-1","3-4","2-4","4.","1"]
["D3","Veberová Nikola","2-4","1-4",null,"1-4","2-4","5.","0"]
["D4","Cenklová Adriana","1-4","4-3","4-1",null,"0-4","3.","2"]
["D5","Jančarová Mariana","2-4","4-2","4-2","4-0",null,"2.","3"]
[]
["Skupina E",null,"Havlíková Viktorie","Hladíková Emma","Hrdličková Terezie","Radová Sofie","Blažková Barbora","Pořadí","Počet vítězství"]
["E1","Havlíková Viktorie",null,"4-3","4-3","4-0","4-0","1.","4"]
["E2","Hladíková Emma","1-4",null,"1-4","1-4","4-1","4.","1"]
["E3","Hrdličková Terezie","3-4","4-1",null,"4-1","4-0","2.","3"]
["E4","Radová Sofie","0-4","4-1","1-4",null,"4-0","3.","2"]
["E5","Blažková Barbora","0-4","1.4","0-4","0-4",null,"5.","0"]

{"sheet":"Pavouk","index":1,"n_rows":32,"n_cols":4,"rows_kept":32,"cut":false,"hidden":false,"merged":[]}
[]
[]
[]
[null,"Zajíčková Kateřina"]
[]
[null,null,"Zajíčková Kateřina"]
["Dvořáková Denisa",null,"4-1"]
[null,"Hrdličková  Terezie"]
["Hrdličková  Terezie","4-2"]
[null,null,null,"Zajíčková Kateřina"]
[null,null,null,"4-1"]
[null,"Farajpourová Aináz"]
[]
[null,null,"Vernerová Sabina"]
[null,null,"4-0"]
[null,"Vernerová Sabina"]
[]
[null,null,null,"Zajíčková Kateřina"]
[null,null,null,"4-1"]
[null,"Levinsky Gloria"]
[]
[null,null,"Havlíková Viktorie"]
[null,null,"4-2"]
[null,"Havlíková Viktorie"]
[]
[null,null,null,"Havlíková Viktorie"]
["Jančarová Mariana",null,null,"4-2"]
[null,"Padrnosová Nela"]
["Padrnosová Nela","4-2"]
[null,null,"Padrnosová Nela"]
[null,null,"4-2"]
[null,"Chlumská Laura"]

{"sheet":"Pořadí","index":2,"n_rows":51,"n_cols":9,"rows_kept":51,"cut":false,"hidden":false,"merged":[[0,0,0,8]]}
["POŘADÍ - SPARTA HEAD BABYTENIS TOUR LÉTO 2019 - DÍVKY"]
[]
[]
["Pořadí","Příjmení","1. turnaj","2. turnaj","3. turnaj","4. turnaj","5. turnaj","Masters","Celkem"]
["1.","Zajíčková Kateřina",300,null,null,null,null,null,{"$f":"SUM(C5:H5)","v":300}]
["2.","Havlíková Viktorie",250,null,null,null,null,null,{"$f":"SUM(C6:H6)","v":250}]
["3.-4.","Padrnosová Nela",200,null,null,null,null,null,{"$f":"SUM(C7:H7)","v":200}]
[null,"Vernerová Sabina",200,null,null,null,null,null,{"$f":"SUM(C8:H8)","v":200}]
["5.-8.","Hrdličková  Terezie",100,null,null,null,null,null,100]
[null,"Farajpourová Aináz",100,null,null,null,null,null,100]
[null,"Levinsky Gloria",100,null,null,null,null,null,100]
[null,"Chlumská Laura",100,null,null,null,null,null,100]
["9.-10.","Jančarová Mariana",50,null,null,null,null,null,50]
[null,"Dvořáková Denisa",50,null,null,null,null,null,50]
["11.-15.","Zimová Lela",20,null,null,null,null,null,20]
[null,"Holubová Eliška",20,null,null,null,null,null,{"$f":"SUM(C16:H16)","v":20}]
[null,"Musilová Amélie",20,null,null,null,null,null,20]
[null,"Cenklová Adriana",20,null,null,null,null,null,20]
[null,"Radová Sofie",20,null,null,null,null,null,20]
["16.-20.","Mastná Daria",10,null,null,null,null,null,10]
[null,"Jelínková Adéla",10,null,null,null,null,null,10]
[null,"Sobiesiak Maja",10,null,null,null,null,null,10]
[null,"Přikrylová Kateřina",10,null,null,null,null,null,10]
[null,"Hladíková Ema",10,null,null,null,null,null,{"$f":"SUM(C24:H24)","v":10}]
["21.-22.","Veberová Nikola",5,null,null,null,null,null,{"$f":"SUM(C25:H25)","v":5}]
[null,"Blažková Barbora",5,null,null,null,null,null,{"$f":"SUM(C26:H26)","v":5}]
[null,null,null,null,null,null,null,null,{"$f":"SUM(C27:G27)","v":0}]
[null,null,null,null,null,null,null,null,{"$f":"SUM(C28:H28)","v":0}]
[null,null,null,null,null,null,null,null,0]
[null,null,null,null,null,null,null,null,0]
[null,null,null,null,null,null,null,null,0]
[null,null,null,null,null,null,null,null,0]
[null,null,null,null,null,null,null,null,0]
[null,null,null,null,null,null,null,null,0]
[null,null,null,null,null,null,null,null,{"$f":"SUM(C35:H35)","v":0}]
[null,null,null,null,null,null,null,null,0]
[null,null,null,null,null,null,null,null,{"$f":"SUM(C37:G37)","v":0}]
[null,null,null,null,null,null,null,null,{"$f":"SUM(C38:H38)","v":0}]
[null,null,null,null,null,null,null,null,{"$f":"SUM(C39:G39)","v":0}]
[null,null,null,null,null,null,null,null,{"$f":"SUM(C40:H40)","v":0}]
[null,null,null,null,null,null,null,null,{"$f":"SUM(C41:G41)","v":0}]
[null,null,null,null,null,null,null,null,0]
[null,null,null,null,null,null,null,null,0]
[null,null,null,null,null,null,null,null,{"$f":"SUM(C44:H44)","v":0}]
[null,null,null,null,null,null,null,null,{"$f":"SUM(C45:G45)","v":0}]
[null,null,null,null,null,null,null,null,{"$f":"SUM(C46:G46)","v":0}]
[null,null,null,null,null,null,null,null,{"$f":"SUM(C47:H47)","v":0}]
[null,null,null,null,null,null,null,null,0]
[null,null,null,null,null,null,null,null,0]
[null,null,null,null,null,null,null,null,0]
[null,null,null,null,null,null,null,null,0]